bitfinex/quotes_BTCUSD_20230901
["timestamp","ask_amount","ask_price","bid_price","bid_amount"]
[1693552818512,1.98643754,26034.0,26033.0,0.01738481]
[1693552818713,1.98637754,26034.0,26033.0,0.01738481]
[1693552818954,1.98655754,26034.0,26033.0,0.01738481]
[1693552819312,1.98649754,26034.0,26033.0,0.01738481]
[1693552819512,1.98643754,26034.0,26033.0,0.01738481]
[1693552819999,1.98637754,26034.0,26033.0,0.01738481]
[1693552820203,1.98631754,26034.0,26033.0,0.01738481]
[1693552820435,1.98703754,26034.0,26033.0,0.01738481]
[1693552820783,1.98691754,26034.0,26033.0,0.01738481]
[1693552820989,1.98685754,26034.0,26033.0,0.01738481]
[1693552821184,1.98649754,26034.0,26033.0,0.01738481]
[1693552821351,1.98661754,26034.0,26033.0,0.01738481]
[1693552821561,1.98643754,26034.0,26033.0,0.01738481]
[1693552822018,1.98637754,26034.0,26033.0,0.01738481]
[1693552822721,1.98643754,26034.0,26033.0,0.01738481]
[1693552822925,1.98649754,26034.0,26033.0,0.01738481]
[1693552823527,1.62214767,26034.0,26033.0,0.01738481]
[1693552823848,1.62226767,26034.0,26033.0,0.01738481]
[1693552824055,1.62232767,26034.0,26033.0,0.01738481]
[1693552824204,1.62160767,26034.0,26033.0,0.01738481]
[1693552824405,1.55632767,26034.0,26033.0,0.01738481]
[1693552825003,1.62106767,26034.0,26033.0,0.01738481]
[1693552825203,1.55632767,26034.0,26033.0,0.01738481]
[1693552825640,1.55632767,26034.0,26033.0,0.13578481]
[1693552826119,1.78685965,26034.0,26033.0,0.13578481]
[1693552827224,1.69464686,26034.0,26033.0,0.13578481]
[1693552830614,1.87907245,26034.0,26033.0,0.13578481]
[1693552830834,1.44854324,26034.0,26033.0,0.13578481]
[1693552831295,1.63296883,26034.0,26033.0,0.13578481]
[1693552832099,1.63296883,26034.0,26033.0,0.14454374]
[1693552832519,1.49464964,26034.0,26033.0,0.14454374]
[1693552835127,1.72518163,26034.0,26033.0,0.14454374]
[1693552835535,1.11142559,26034.0,26033.0,1.29692574]
[1693552836145,1.34195758,26034.0,26033.0,1.29692574]
[1693552836580,1.11142559,26034.0,26033.0,1.29692574]
[1693552840479,1.11142559,26034.0,26033.0,0.72073474]
[1693552840660,1.11142559,26034.0,26033.0,0.14454374]
[1693552841079,1.49851237,26034.0,26033.0,0.14454374]
[1693552841480,1.49851237,26034.0,26033.0,0.72073474]
[1693552842345,1.49851237,26034.0,26033.0,0.14454374]
[1693552843102,1.72904436,26034.0,26033.0,0.14454374]
[1693552844470,2.07753291,26034.0,26033.0,0.14454374]
[1693552844665,1.89988732,26034.0,26033.0,0.14454374]
[1693552844879,1.89970732,26034.0,26033.0,0.14454374]
[1693552845031,1.89280732,26034.0,26033.0,0.14454374]
[1693552845240,1.89406732,26034.0,26033.0,0.14454374]
[1693552845611,1.89130732,26034.0,26033.0,0.14454374]
[1693552845763,1.89076732,26034.0,26033.0,0.14454374]
[1693552845957,1.89082732,26034.0,26033.0,0.14454374]
[1693552846161,1.89058732,26034.0,26033.0,0.14454374]
[1693552846360,1.88938732,26034.0,26033.0,0.14454374]
[1693552846633,1.89046732,26034.0,26033.0,0.14454374]
[1693552847045,1.89064732,26034.0,26033.0,0.14454374]
[1693552847299,1.89058732,26034.0,26033.0,0.14454374]
[1693552847502,1.89028732,26034.0,26033.0,0.14454374]
[1693552847682,1.89022732,26034.0,26033.0,0.14454374]
[1693552847902,1.89004732,26034.0,26033.0,0.14454374]
[1693552848037,1.88842732,26034.0,26033.0,0.14454374]
[1693552848238,1.88986732,26034.0,26033.0,0.14454374]
[1693552848442,1.89022732,26034.0,26033.0,0.14454374]
[1693552848672,1.88968732,26034.0,26033.0,0.14454374]
[1693552848837,1.88842732,26034.0,26033.0,0.14454374]
[1693552849041,1.88866732,26034.0,26033.0,0.14454374]
[1693552849231,1.88854732,26034.0,26033.0,0.14454374]
[1693552849444,1.88842732,26034.0,26033.0,0.14454374]
[1693552849644,1.88848732,26034.0,26033.0,0.14454374]
[1693552850117,1.88842732,26034.0,26033.0,0.14454374]
[1693552850289,1.89220732,26034.0,26033.0,0.14454374]
[1693552850490,1.89514732,26034.0,26033.0,0.14454374]
[1693552850733,1.89712732,26034.0,26033.0,0.14454374]
[1693552850956,1.88770732,26034.0,26033.0,0.14454374]
[1693552851262,1.88764732,26034.0,26033.0,0.14454374]
[1693552851414,1.88752732,26034.0,26033.0,0.14454374]
[1693552851618,1.88746732,26034.0,26033.0,0.14454374]
[1693552851774,1.88740732,26034.0,26033.0,0.14454374]
[1693552852192,1.89508732,26034.0,26033.0,0.14454374]
[1693552852669,1.89676732,26034.0,26033.0,0.14454374]
[1693552852871,1.89502732,26034.0,26033.0,0.14454374]
[1693552853094,1.89490732,26034.0,26033.0,0.14454374]
[1693552853275,1.89514732,26034.0,26033.0,0.14454374]
[1693552853476,1.90186732,26034.0,26033.0,0.14454374]
[1693552853684,2.47671632,26034.0,26033.0,0.14454374]
[1693552853888,2.47197632,26034.0,26033.0,0.14454374]
[1693552854111,2.47155632,26034.0,26033.0,0.14454374]
[1693552854312,2.47041632,26034.0,26033.0,0.14454374]
[1693552854642,2.47017632,26034.0,26033.0,0.14454374]
[1693552854821,2.47011632,26034.0,26033.0,0.14454374]
[1693552855025,2.46885632,26034.0,26033.0,0.14454374]
[1693552855223,2.46873632,26034.0,26033.0,0.14454374]
[1693552855424,2.46969632,26034.0,26033.0,0.14454374]
[1693552855629,2.46939632,26034.0,26033.0,0.14454374]
[1693552855802,2.47137632,26034.0,26033.0,0.14454374]
[1693552856015,2.46753632,26034.0,26033.0,0.14454374]
[1693552856210,2.46747632,26034.0,26033.0,0.14454374]
[1693552856413,2.46753632,26034.0,26033.0,0.14454374]
[1693552856620,2.46711632,26034.0,26033.0,0.14454374]
[1693552856770,2.46705632,26034.0,26033.0,0.14454374]
[1693552856981,2.46699632,26034.0,26033.0,0.14454374]
[1693552857190,2.46687632,26034.0,26033.0,0.14454374]
[1693552857621,2.46681632,26034.0,26033.0,0.14454374]
[1693552857819,2.46669632,26034.0,26033.0,0.14454374]
[1693552858022,2.46801632,26034.0,26033.0,0.14454374]
[1693552858285,2.46795632,26034.0,26033.0,0.14454374]
[1693552858440,2.46777632,26034.0,26033.0,0.14454374]
[1693552858649,2.46765632,26034.0,26033.0,0.14454374]
[1693552858849,2.23736433,26034.0,26033.0,0.14454374]
[1693552859203,2.23718433,26034.0,26033.0,0.14454374]
[1693552859429,2.23730433,26034.0,26033.0,0.14454374]
[1693552859650,2.23778433,26034.0,26033.0,0.14454374]
[1693552859873,2.23796433,26034.0,26033.0,0.14454374]
[1693552860050,2.24000433,26034.0,26033.0,0.14454374]
[1693552860252,2.24180433,26034.0,26033.0,0.14454374]
[1693552860459,2.24108433,26034.0,26033.0,0.14454374]
[1693552860633,2.23802433,26034.0,26033.0,0.14454374]
[1693552860836,2.23658433,26034.0,26033.0,0.14454374]
[1693552861047,2.23094433,26034.0,26033.0,0.14454374]
[1693552861356,2.23148433,26034.0,26033.0,0.14454374]
[1693552861681,2.23184433,26034.0,26033.0,0.14454374]
[1693552862160,2.23220433,26034.0,26033.0,0.14454374]
[1693552862397,2.23208433,26034.0,26033.0,0.14454374]
[1693552862604,2.23220433,26034.0,26033.0,0.14454374]
[1693552862807,2.23232433,26034.0,26033.0,0.14454374]
[1693552863020,2.23406433,26034.0,26033.0,0.14454374]
[1693552863405,2.23418433,26034.0,26033.0,0.14454374]
[1693552863598,2.23412433,26034.0,26033.0,0.14454374]
[1693552863804,2.22920433,26034.0,26033.0,0.14454374]
[1693552864158,2.23034433,26034.0,26033.0,0.14454374]
[1693552864570,2.23040433,26034.0,26033.0,0.14454374]
[1693552864709,2.23052433,26034.0,26033.0,0.14454374]
[1693552864927,2.23064433,26034.0,26033.0,0.14454374]
[1693552865271,2.23094433,26034.0,26033.0,0.14454374]
[1693552865409,2.16422433,26034.0,26033.0,0.14454374]
[1693552874571,2.22884433,26034.0,26033.0,0.14454374]
[1693552874880,2.22890433,26034.0,26033.0,0.14454374]
[1693552875100,2.23232433,26034.0,26033.0,0.14454374]
[1693552875428,2.23244433,26034.0,26033.0,0.14454374]
[1693552875627,2.23238433,26034.0,26033.0,0.14454374]
[1693552875785,2.23226433,26034.0,26033.0,0.14454374]
[1693552876150,2.23160433,26034.0,26033.0,0.14454374]
[1693552876528,2.23094433,26034.0,26033.0,0.14454374]
[1693552876730,2.33552113,26034.0,26033.0,0.14454374]
[1693552876957,2.23082433,26034.0,26033.0,0.14454374]
[1693552877346,2.33538767,26034.0,26033.0,0.14454374]
[1693552877503,2.33544767,26034.0,26033.0,0.14454374]
[1693552877881,2.33586767,26034.0,26033.0,0.14454374]
[1693552878287,2.33670767,26034.0,26033.0,0.14454374]
[1693552878487,2.33664767,26034.0,26033.0,0.14454374]
[1693552878696,2.33658767,26034.0,26033.0,0.14454374]
[1693552879527,2.33664767,26034.0,26033.0,0.14454374]
[1693552879834,2.33646767,26034.0,26033.0,0.14454374]
[1693552880010,2.33640767,26034.0,26033.0,0.14454374]
[1693552880193,2.33646767,26034.0,26033.0,0.14454374]
[1693552880813,2.33520767,26034.0,26033.0,0.14454374]
[1693552880991,2.33574767,26034.0,26033.0,0.14454374]
[1693552881328,2.33538767,26034.0,26033.0,0.14454374]
[1693552881532,2.33532767,26034.0,26033.0,0.14454374]
[1693552881911,2.33568767,26034.0,26033.0,0.14454374]
[1693552882067,2.33574767,26034.0,26033.0,0.14454374]
[1693552882246,2.33568767,26034.0,26033.0,0.14454374]
[1693552882428,2.33634767,26034.0,26033.0,0.14454374]
[1693552882631,2.33640767,26034.0,26033.0,0.14454374]
[1693552882877,2.92163667,26034.0,26033.0,0.14454374]
[1693552883079,2.92151667,26034.0,26033.0,0.14454374]
[1693552883277,2.92145667,26034.0,26033.0,0.14454374]
[1693552883644,2.92121667,26034.0,26033.0,0.14454374]
[1693552883756,2.92085667,26034.0,26033.0,0.14454374]
[1693552883957,2.92079667,26034.0,26033.0,0.14454374]
[1693552884180,2.91995667,26034.0,26033.0,0.14454374]
[1693552884407,3.32073084,26034.0,26033.0,0.14454374]
[1693552884569,3.32283084,26034.0,26033.0,0.14454374]
[1693552884776,3.32295084,26034.0,26033.0,0.14454374]
[1693552885037,3.32289084,26034.0,26033.0,0.14454374]
[1693552885262,3.32253084,26034.0,26033.0,0.14454374]
[1693552885479,3.32241084,26034.0,26033.0,0.14454374]
[1693552885669,3.32355084,26034.0,26033.0,0.14454374]
[1693552885885,3.32337084,26034.0,26033.0,0.14454374]
[1693552886028,3.32325084,26034.0,26033.0,0.14454374]
[1693552886209,3.32319084,26034.0,26033.0,0.14454374]
[1693552886407,3.32307084,26034.0,26033.0,0.14454374]
[1693552886675,3.32289084,26034.0,26033.0,0.14454374]
[1693552886896,3.32271084,26034.0,26033.0,0.14454374]
[1693552887035,3.32187084,26034.0,26033.0,0.02614374]
[1693552887218,3.32157084,26034.0,26033.0,0.02614374]
[1693552887417,3.31449084,26034.0,26033.0,0.002576]
[1693552887668,3.31515084,26034.0,26033.0,0.002576]
[1693552887878,3.31503084,26034.0,26033.0,0.002576]
[1693552888079,3.31491084,26034.0,26033.0,0.002576]
[1693552888276,3.31503084,26034.0,26033.0,0.002576]
[1693552888450,3.31389084,26034.0,26033.0,0.002576]
[1693552888656,3.31383084,26034.0,26033.0,0.002576]
[1693552888856,3.31377084,26034.0,26033.0,0.002576]
[1693552889062,3.31365084,26034.0,26033.0,0.002576]
[1693552889279,3.31491084,26034.0,26033.0,0.002576]
[1693552889469,3.31479084,26034.0,26033.0,0.002576]
[1693552889672,3.31371084,26034.0,26033.0,0.002576]
[1693552889926,3.31395084,26034.0,26033.0,0.002576]
[1693552890102,3.31377084,26034.0,26033.0,0.002576]
[1693552890308,3.31293084,26034.0,26033.0,0.002576]
[1693552890612,3.31287084,26034.0,26033.0,0.002576]
[1693552890750,3.31281084,26034.0,26033.0,0.002576]
[1693552890950,3.31227084,26034.0,26033.0,0.002576]
[1693552891152,3.31251084,26034.0,26033.0,0.002576]
[1693552891351,3.31239084,26034.0,26033.0,0.002576]
[1693552891554,3.31161084,26034.0,26033.0,0.002576]
[1693552892113,3.31155084,26034.0,26033.0,0.002576]
[1693552892320,3.31137084,26034.0,26033.0,0.002576]
[1693552892560,3.33503084,26034.0,26033.0,0.002576]
[1693552892771,3.33587084,26034.0,26033.0,0.002576]
[1693552892969,3.33503084,26034.0,26033.0,0.002576]
[1693552893180,3.33497084,26034.0,26033.0,0.002576]
[1693552893375,3.33653084,26034.0,26033.0,0.002576]
[1693552893576,3.33659084,26034.0,26033.0,0.002576]
[1693552893808,3.33773084,26034.0,26033.0,0.002576]
[1693552894006,3.33749084,26034.0,26033.0,0.002576]
[1693552894224,3.33755084,26034.0,26033.0,0.002576]
[1693552894439,3.33767084,26034.0,26033.0,0.002576]
[1693552894640,3.33779084,26034.0,26033.0,0.002576]
[1693552894881,3.33839084,26034.0,26033.0,0.002576]
[1693552895079,3.33863084,26034.0,26033.0,0.002576]
[1693552895258,3.33869084,26034.0,26033.0,0.002576]
[1693552895482,3.33791084,26034.0,26033.0,0.002576]
[1693552895685,3.33881084,26034.0,26033.0,0.002576]
[1693552895898,3.33899084,26034.0,26033.0,0.002576]
[1693552896086,2.95123667,26034.0,26033.0,0.002576]
[1693552896246,2.95255667,26034.0,26033.0,0.002576]
[1693552896442,2.95273667,26034.0,26033.0,0.002576]
[1693552896644,2.95147667,26034.0,26033.0,0.002576]
[1693552896849,2.95273667,26034.0,26033.0,0.002576]
[1693552897051,2.95375667,26034.0,26033.0,0.002576]
[1693552897330,2.95393667,26034.0,26033.0,0.002576]
[1693552897571,2.95423667,26034.0,26033.0,0.002576]
[1693552897804,2.95381667,26034.0,26033.0,0.002576]
[1693552898030,2.95393667,26034.0,26033.0,0.002576]
[1693552898235,2.95405667,26034.0,26033.0,0.002576]
[1693552898410,2.95447667,26034.0,26033.0,0.002576]
[1693552898615,3.53148567,26034.0,26033.0,0.002576]
[1693552898794,3.91953984,26034.0,26033.0,0.002576]
[1693552899000,3.91959984,26034.0,26033.0,0.002576]
[1693552899336,3.92007984,26034.0,26033.0,0.002576]
[1693552899543,3.92169984,26034.0,26033.0,0.002576]
[1693552899742,3.92133984,26034.0,26033.0,0.002576]
[1693552899946,3.64875129,26034.0,26033.0,0.002576]
[1693552900161,4.00458216,26034.0,26033.0,0.002576]
[1693552900359,3.73820525,26034.0,26033.0,0.002576]
[1693552900566,3.73718525,26034.0,26033.0,0.002576]
[1693552900783,3.73808525,26034.0,26033.0,0.002576]
[1693552900983,3.73802525,26034.0,26033.0,0.002576]
[1693552901190,3.73820525,26034.0,26033.0,0.002576]
[1693552901389,3.73844525,26034.0,26033.0,0.002576]
[1693552901589,3.73820525,26034.0,26033.0,0.002576]
[1693552901792,3.73856525,26034.0,26033.0,0.002576]
[1693552901990,3.73838525,26034.0,26033.0,0.002576]
[1693552902191,3.73844525,26034.0,26033.0,0.002576]
[1693552902410,3.73550525,26034.0,26033.0,0.002576]
[1693552902587,3.98531066,26034.0,26033.0,0.002576]
[1693552902786,3.98489066,26034.0,26033.0,0.002576]
[1693552902987,3.98441066,26034.0,26033.0,0.002576]
[1693552903232,3.98663066,26034.0,26033.0,0.02544301]
[1693552903438,3.73892525,26034.0,26033.0,0.02544301]
[1693552903637,4.01147622,26034.0,26033.0,0.02544301]
[1693552903854,4.17811382,26034.0,26033.0,0.02544301]
[1693552904036,4.18015382,26034.0,26033.0,0.02544301]
[1693552904251,4.17619382,26034.0,26033.0,0.02544301]
[1693552904449,4.17823382,26034.0,26033.0,0.02544301]
[1693552904655,4.17667382,26034.0,26033.0,0.02544301]
[1693552904859,4.17673382,26034.0,26033.0,0.02544301]
[1693552905060,4.17685382,26034.0,26033.0,0.02544301]
[1693552905345,4.17691382,26034.0,26033.0,0.02544301]
[1693552905577,4.17901382,26034.0,26033.0,0.02544301]
[1693552905712,4.17925382,26034.0,26033.0,0.02544301]
[1693552905914,4.17811382,26034.0,26033.0,0.02544301]
[1693552906359,4.17823382,26034.0,26033.0,0.02544301]
[1693552906573,4.18351382,26034.0,26033.0,0.02544301]
[1693552906719,4.18303382,26034.0,26033.0,0.02544301]
[1693552906921,4.18285382,26034.0,26033.0,0.02544301]
[1693552907149,4.18297382,26034.0,26033.0,0.02544301]
[1693552907350,4.18279382,26034.0,26033.0,0.02544301]
[1693552907525,4.18153382,26034.0,26033.0,0.02544301]
[1693552907744,4.18141382,26034.0,26033.0,0.02544301]
[1693552907950,4.18405382,26034.0,26033.0,0.02544301]
[1693552908152,4.18399382,26034.0,26033.0,0.02544301]
[1693552908758,4.18393382,26034.0,26033.0,0.02544301]
[1693552908958,4.18369382,26034.0,26033.0,0.02544301]
[1693552909526,4.37413382,26034.0,26033.0,0.02544301]
[1693552909676,4.37107382,26034.0,26033.0,0.02544301]
[1693552909838,4.36207382,26034.0,26033.0,0.02544301]
[1693552910036,4.36195382,26034.0,26033.0,0.02544301]
[1693552910278,4.36237382,26034.0,26033.0,0.02544301]
[1693552910481,4.36243382,26034.0,26033.0,0.02544301]
[1693552910680,4.36219382,26034.0,26033.0,0.02544301]
[1693552910895,4.36177382,26034.0,26033.0,0.02544301]
[1693552911099,4.36183382,26034.0,26033.0,0.02544301]
[1693552911323,4.36195382,26034.0,26033.0,0.02544301]
[1693552911519,4.36237382,26034.0,26033.0,0.02544301]
[1693552911727,4.36261382,26034.0,26033.0,0.02544301]
[1693552912157,4.36279382,26034.0,26033.0,0.02544301]
[1693552912337,4.36297382,26034.0,26033.0,0.02544301]
[1693552912561,4.36321382,26034.0,26033.0,0.02544301]
[1693552912772,4.36327382,26034.0,26033.0,0.02544301]
[1693552912979,4.36351382,26034.0,26033.0,0.02544301]
[1693552913162,4.36357382,26034.0,26033.0,0.02544301]
[1693552913363,4.36363382,26034.0,26033.0,0.02544301]
[1693552913565,4.36345382,26034.0,26033.0,0.02544301]
[1693552913776,4.36477382,26034.0,26033.0,0.02544301]
[1693552913981,4.36729382,26034.0,26033.0,0.02544301]
[1693552914172,4.36831382,26034.0,26033.0,0.02544301]
[1693552914350,4.36849382,26034.0,26033.0,0.02544301]
[1693552914734,4.37011382,26034.0,26033.0,0.02544301]
[1693552914940,4.36177382,26034.0,26033.0,0.02544301]
[1693552915072,4.36105382,26034.0,26033.0,0.02544301]
[1693552915275,4.36135382,26034.0,26033.0,0.02544301]
[1693552915480,4.36171382,26034.0,26033.0,0.02544301]
[1693552915682,4.36189382,26034.0,26033.0,0.02544301]
[1693552916001,4.36183382,26034.0,26033.0,0.02544301]
[1693552916205,4.36201382,26034.0,26033.0,0.02544301]
[1693552916416,4.36213382,26034.0,26033.0,0.02544301]
[1693552916756,4.36171382,26034.0,26033.0,0.02544301]
[1693552916931,4.36285382,26034.0,26033.0,0.02544301]
[1693552917154,4.36219382,26034.0,26033.0,0.02544301]
[1693552917372,4.36231382,26034.0,26033.0,0.02544301]
[1693552917587,4.36285382,26034.0,26033.0,0.02544301]
[1693552917831,4.36303382,26034.0,26033.0,0.02544301]
[1693552918206,4.36261382,26034.0,26033.0,0.02544301]
[1693552918410,4.36273382,26034.0,26033.0,0.02544301]
[1693552918615,4.36279382,26034.0,26033.0,0.02544301]
[1693552918774,4.36291382,26034.0,26033.0,0.02544301]
[1693552919178,4.36297382,26034.0,26033.0,0.02544301]
[1693552919381,4.36315382,26034.0,26033.0,0.02544301]
[1693552919575,4.36321382,26034.0,26033.0,0.02544301]
[1693552919852,4.35619382,26034.0,26033.0,0.02544301]
[1693552920050,4.35679382,26034.0,26033.0,0.02544301]
[1693552920257,4.35691382,26034.0,26033.0,0.02544301]
[1693552920441,4.35853382,26034.0,26033.0,0.02544301]
[1693552920639,4.35859382,26034.0,26033.0,0.02544301]
[1693552920861,4.35871382,26034.0,26033.0,0.02544301]
[1693552921279,4.35877382,26034.0,26033.0,0.02544301]
[1693552921491,4.35895382,26034.0,26033.0,0.02544301]
[1693552921720,4.35901382,26034.0,26033.0,0.02544301]
[1693552921916,4.35913382,26034.0,26033.0,0.02544301]
[1693552922033,4.35919382,26034.0,26033.0,0.02544301]
[1693552922247,4.35937382,26034.0,26033.0,0.02544301]
[1693552922454,4.35943382,26034.0,26033.0,0.02544301]
[1693552922670,4.35955382,26034.0,26033.0,0.02544301]
[1693552923024,4.33967382,26034.0,26033.0,0.02544301]
[1693552923167,4.35973382,26034.0,26033.0,0.02544301]
[1693552923370,4.36021382,26034.0,26033.0,0.02544301]
[1693552923579,4.35925382,26034.0,26033.0,0.02544301]
[1693552923781,4.35937382,26034.0,26033.0,0.02544301]
[1693552923978,4.35937382,26034.0,26028.0,0.60698152]
[1693552923979,0.40727417,26033.0,26025.0,0.1184]
[1693552924220,0.13831453,26026.0,26021.0,0.1184]
[1693552924424,0.13831453,26026.0,26021.0,0.13842681]
[1693552924425,0.23055542,26024.0,26021.0,0.13842681]
[1693552924642,0.23055542,26024.0,26020.0,177.50758339]
[1693552924643,0.13830782,26024.0,26023.0,0.1184]
[1693552925074,0.7,26024.0,26023.0,0.1184]
[1693552925878,0.702,26024.0,26023.0,0.1184]
[1693552926081,0.93248025,26024.0,26023.0,0.1184]
[1693552926303,0.7941921,26024.0,26023.0,0.1184]
[1693552927130,1.18227888,26024.0,26023.0,0.1184]
[1693552927333,1.18027888,26024.0,26023.0,0.1184]
[1693552927533,1.75666988,26024.0,26023.0,0.1184]
[1693552927709,1.75866988,26024.0,26023.0,0.1184]
[1693552928527,1.66647778,26024.0,26023.0,0.1184]
[1693552928796,1.88139197,26024.0,26023.0,0.1184]
[1693552929232,2.23967081,26024.0,26023.0,0.1184]
[1693552929439,1.88139197,26024.0,26023.0,0.1184]
[1693552931879,1.94835197,26024.0,26023.0,0.13676617]
[1693552932099,1.94871197,26024.0,26023.0,0.13676617]
[1693552932270,1.94853197,26024.0,26023.0,0.13676617]
[1693552932484,2.52480297,26024.0,26023.0,0.13676617]
[1693552932655,2.52474297,26024.0,26023.0,0.13676617]
[1693552932887,2.52516297,26024.0,26023.0,0.13676617]
[1693552933092,2.52498297,26024.0,26023.0,0.13676617]
[1693552933278,2.24286878,26024.0,26023.0,0.13676617]
[1693552933674,1.66647778,26024.0,26023.0,0.13676617]
[1693552936206,1.85647778,26024.0,26023.0,0.13676617]
[1693552937427,2.43286878,26024.0,26023.0,0.13676617]
[1693552938824,2.50342878,26024.0,26023.0,0.13676617]
[1693552939005,2.50774878,26024.0,26023.0,0.13676617]
[1693552939227,2.50486878,26024.0,26023.0,0.13676617]
[1693552939421,2.50468878,26024.0,26023.0,0.13676617]
[1693552939627,2.50564878,26024.0,26023.0,0.13676617]
[1693552940058,2.50606878,26024.0,26023.0,0.13676617]
[1693552940250,2.50624878,26024.0,26023.0,0.13676617]
[1693552940494,2.50642878,26024.0,26023.0,0.13676617]
[1693552940723,2.50654878,26024.0,26023.0,0.13676617]
[1693552940934,2.50912878,26024.0,26023.0,0.13676617]
[1693552941195,2.50582878,26024.0,26023.0,0.13676617]
[1693552941391,2.50372878,26024.0,26023.0,0.13676617]
[1693552941552,2.50330878,26024.0,26023.0,0.13676617]
[1693552941782,2.50366878,26024.0,26023.0,0.13676617]
[1693552941988,2.50378878,26024.0,26023.0,0.13676617]
[1693552942189,2.50372878,26024.0,26023.0,0.13676617]
[1693552942391,2.50384878,26024.0,26023.0,0.13676617]
[1693552942586,2.50102878,26024.0,26023.0,0.13676617]
[1693552942853,2.50120878,26024.0,26023.0,0.13676617]
[1693552942996,2.50432878,26024.0,26023.0,0.13676617]
[1693552943185,2.50390878,26024.0,26023.0,0.13676617]
[1693552943384,2.50480878,26024.0,26023.0,0.13676617]
[1693552943587,2.50492878,26024.0,26023.0,0.13676617]
[1693552943767,2.50798878,26024.0,26023.0,0.13676617]
[1693552943978,2.50774878,26024.0,26023.0,0.13676617]
[1693552944192,2.50744878,26024.0,26023.0,0.13676617]
[1693552944399,2.50846878,26024.0,26023.0,0.13676617]
[1693552944796,2.50852878,26024.0,26023.0,0.13676617]
[1693552945295,2.50906878,26024.0,26023.0,0.13676617]
[1693552945513,2.50936878,26024.0,26023.0,0.13676617]
[1693552945729,2.50948878,26024.0,26023.0,0.13676617]
[1693552945942,2.84014396,26024.0,26023.0,0.13676617]
[1693552946159,2.84200396,26024.0,26023.0,0.13676617]
[1693552946335,2.84650396,26024.0,26023.0,0.13676617]
[1693552946542,2.84464396,26024.0,26023.0,0.13676617]
[1693552946771,2.84482396,26024.0,26023.0,0.13676617]
[1693552947063,2.84512396,26024.0,26023.0,0.13676617]
[1693552947587,2.84518396,26024.0,26023.0,0.13676617]
[1693552948143,2.84554396,26024.0,26023.0,0.13676617]
[1693552948378,3.43357496,26024.0,26023.0,0.13676617]
[1693552948577,3.43333496,26024.0,26023.0,0.13676617]
[1693552948774,3.43633496,26024.0,26023.0,0.13676617]
[1693552949026,3.43735496,26024.0,26023.0,0.13676617]
[1693552949356,3.43585496,26024.0,26023.0,0.13676617]
[1693552949535,3.43741496,26024.0,26023.0,0.13676617]
[1693552949749,3.43681496,26024.0,26023.0,0.13676617]
[1693552949949,3.43675496,26024.0,26023.0,0.13676617]
[1693552950170,3.43663496,26024.0,26023.0,0.13676617]
[1693552950373,3.43801496,26024.0,26023.0,0.13676617]
[1693552950584,3.43951496,26024.0,26023.0,0.13676617]
[1693552950789,3.44653496,26024.0,26023.0,0.13676617]
[1693552950991,3.44647496,26024.0,26023.0,0.13676617]
[1693552951195,3.44641496,26024.0,26023.0,0.13676617]
[1693552951348,3.89397471,26024.0,26023.0,0.01836617]
[1693552951554,3.89139471,26024.0,26023.0,0.01836617]
[1693552951761,3.88611471,26024.0,26020.0,177.50758339]
[1693552951961,1.729305,26022.0,26020.0,177.50758339]
[1693552952119,2.24000078,26021.0,26020.0,177.50758339]
[1693552953182,2.24000078,26021.0,26020.0,177.54458339]
[1693552953183,2.24300078,26021.0,26020.0,177.54458339]
[1693552953782,2.24600078,26021.0,26020.0,177.58158339]
[1693552954868,2.24600078,26021.0,26020.0,177.69998339]
[1693552955675,1.66954378,26021.0,26020.0,177.69998339]
[1693552956228,1.09308678,26021.0,26020.0,178.27646239]
[1693552957460,1.09308678,26021.0,26020.0,178.29379934]
[1693552965022,1.15335968,26021.0,26020.0,178.29379934]
[1693552970438,1.15335968,26021.0,26020.0,178.87027834]
[1693552970644,0.7662729,26021.0,26020.0,179.44675734]
[1693552973348,0.76612032,26021.0,26020.0,179.44675734]
[1693552983150,0.7655194,26021.0,26020.0,179.44675734]
[1693552989642,0.8577115,26021.0,26020.0,179.44675734]
[1693552991054,0.85517652,26021.0,26020.0,179.44675734]
[1693552996134,0.76298442,26021.0,26020.0,179.44675734]
[1693552996541,0.0662729,26021.0,26020.0,179.44675734]
[1693553000936,0.7662729,26021.0,26020.0,179.44675734]
[1693553008151,0.858465,26021.0,26020.0,179.44675734]
[1693553008335,0.7662729,26021.0,26020.0,179.44675734]
[1693553008782,0.858465,26021.0,26020.0,179.44675734]
[1693553010125,0.7981921,26021.0,26020.0,179.44675734]
[1693553013864,1.18527888,26021.0,26020.0,178.87027834]
[1693553018138,1.09308678,26021.0,26020.0,178.87027834]
[1693553018328,1.18542086,26021.0,26020.0,178.87027834]
[1693553021878,1.18498584,26021.0,26020.0,178.87027834]
[1693553024316,1.18458465,26021.0,26020.0,178.87027834]
[1693553025284,1.18458465,26021.0,26020.0,179.44675734]
[1693553028349,1.18458465,26021.0,26020.0,178.87027834]
[1693553031173,1.18458465,26021.0,26020.0,177.57347733]
[1693553031177,1.26458465,26021.0,26020.0,177.57347733]
[1693553031371,4.19142262,26021.0,26020.0,176.81850972]
[1693553031582,4.63913262,26021.0,26020.0,176.81850972]
[1693553031796,3.78358551,26021.0,26020.0,176.81850972]
[1693553031997,3.75768524,26021.0,26020.0,176.81850972]
[1693553032288,4.17114276,26021.0,26020.0,176.78150972]
[1693553032484,4.46909656,26021.0,26020.0,176.78150972]
[1693553032688,5.0426131,26021.0,26020.0,176.74450972]
[1693553032895,4.69107195,26021.0,26020.0,176.74750972]
[1693553033129,4.9710284,26021.0,26020.0,176.74450972]
[1693553033347,4.9713884,26021.0,26020.0,176.74450972]
[1693553033548,5.0444284,26021.0,26020.0,176.75050972]
[1693553033757,5.0043084,26021.0,26020.0,176.74750972]
[1693553033956,5.39182257,26021.0,26020.0,176.74750972]
[1693553034174,5.39218257,26021.0,26020.0,176.74750972]
[1693553034383,5.39314257,26021.0,26020.0,176.74750972]
[1693553034586,5.43050257,26021.0,26020.0,176.75050972]
[1693553034792,5.43062257,26021.0,26020.0,176.75050972]
[1693553034997,5.43074257,26021.0,26020.0,176.75050972]
[1693553035246,5.11928612,26021.0,26020.0,176.75050972]
[1693553035445,5.11904612,26021.0,26020.0,176.75050972]
[1693553035646,5.11964612,26021.0,26020.0,176.75050972]
[1693553035845,5.12096612,26021.0,26020.0,176.75050972]
[1693553036047,5.12036612,26021.0,26020.0,176.75050972]
[1693553036254,5.12348612,26021.0,26020.0,176.75050972]
[1693553036458,5.12072612,26021.0,26020.0,176.75050972]
[1693553036686,5.11436612,26021.0,26020.0,176.75050972]
[1693553036968,5.11700612,26021.0,26020.0,176.75050972]
[1693553037173,5.32892923,26021.0,26020.0,176.75050972]
[1693553037330,5.0553489,26021.0,26020.0,176.75050972]
[1693553037534,5.0570289,26021.0,26020.0,176.75050972]
[1693553037739,5.30801767,26021.0,26020.0,176.75050972]
[1693553037922,5.0639889,26021.0,26020.0,176.75050972]
[1693553038125,4.68187473,26021.0,26020.0,176.75050972]
[1693553038307,4.92552006,26021.0,26020.0,176.75050972]